[Event "Titled Tuesday Blitz May 03 Early 2022"]
[White "Delorme, Alban"]
[Black "Nozdrachev, Leonid"]
[WhiteFideId "623636"]
[BlackFideId "24113433"]
[WhiteElo "2197"]
[BlackElo "2242"]
[Result "1-0"]
[Round "03"]
[TimeControl "180+1"]
[Date "2022.05.03"]
[WhiteClock "0:01:22"]
[BlackClock "0:00:13"]

1. d4 {[%clk 0:03:00]}  b6 {[%clk 0:02:58]} 2. Nf3 {[%clk 0:03:00]}  Bb7 {[%clk 0:02:58]} 3. g3 {[%clk 0:03:01]}  e6 {[%clk 0:02:53]} 4. Bg2 {[%clk 0:03:01]}  d6 {[%clk 0:02:54]} 5. O-O {[%clk 0:03:01]}  Nd7 {[%clk 0:02:53]} 6. c4 {[%clk 0:03:00]}  Ne7 {[%clk 0:02:54]} 7. Nc3 {[%clk 0:03:00]}  g6 {[%clk 0:02:53]} 8. Bf4 {[%clk 0:02:56]}  Bg7 {[%clk 0:02:53]} 9. Qd2 {[%clk 0:02:56]}  h6 {[%clk 0:02:52]} 10. h4 {[%clk 0:02:55]}  a6 {[%clk 0:02:45]} 11. Rac1 {[%clk 0:02:51]}  e5 {[%clk 0:02:41]} 12. Be3 {[%clk 0:02:47]}  Nf5 {[%clk 0:02:40]} 13. dxe5 {[%clk 0:02:38]}  Nxe5 {[%clk 0:02:33]} 14. Nxe5 {[%clk 0:02:38]}  Bxg2 {[%clk 0:02:33]} 15. Nxf7 {[%clk 0:02:37]}  Qd7 {[%clk 0:02:14]} 16. Nxd6+ {[%clk 0:02:27]}  Nxd6 {[%clk 0:02:14]} 17. Kxg2 {[%clk 0:02:28]}  Nxc4 {[%clk 0:02:09]} 18. Qxd7+ {[%clk 0:02:26]}  Kxd7 {[%clk 0:02:10]} 19. Rfd1+ {[%clk 0:02:25]}  Kc8 {[%clk 0:02:06]} 20. Bd4 {[%clk 0:02:25]}  Rh7 {[%clk 0:01:55]} 21. Nd5 {[%clk 0:02:21]}  b5 {[%clk 0:01:36]} 22. b3 {[%clk 0:02:19]}  Bxd4 {[%clk 0:01:13]} 23. Rxd4 {[%clk 0:02:17]}  Nd6 {[%clk 0:01:10]} 24. Nb6+ {[%clk 0:02:16]}  Kb7 {[%clk 0:01:07]} 25. Nxa8 {[%clk 0:02:16]}  Kxa8 {[%clk 0:01:08]} 26. e4 {[%clk 0:02:03]}  Re7 {[%clk 0:01:06]} 27. f4 {[%clk 0:02:00]}  Kb7 {[%clk 0:01:01]} 28. Kf3 {[%clk 0:01:59]}  h5 {[%clk 0:01:01]} 29. Rc5 {[%clk 0:01:53]}  Nf7 {[%clk 0:00:53]} 30. Rcd5 {[%clk 0:01:46]}  Re6 {[%clk 0:00:50]} 31. f5 {[%clk 0:01:38]}  gxf5 {[%clk 0:00:44]} 32. exf5 {[%clk 0:01:35]}  Re1 {[%clk 0:00:43]} 33. Rd1 {[%clk 0:01:32]}  Ne5+ {[%clk 0:00:33]} 34. Kf4 {[%clk 0:01:27]}  Rxd1 {[%clk 0:00:22]} 35. Rxd1 {[%clk 0:01:27]}  Ng4 {[%clk 0:00:21]} 36. Kg5 {[%clk 0:01:23]}  Nf2 {[%clk 0:00:19]} 37. Rd8 {[%clk 0:01:20]}  c5 {[%clk 0:00:16]} 38. f6 {[%clk 0:01:18]}  Ne4+ {[%clk 0:00:15]} 39. Kg6 {[%clk 0:01:19]}  Kc7 {[%clk 0:00:13]} 40. f7 {[%clk 0:01:17]}  Kxd8 {[%clk 0:00:13]} 41. f8=Q+ {[%clk 0:01:18]}  Kd7 {[%clk 0:00:12]} 42. Qf5+ {[%clk 0:01:16]}  Kd6 {[%clk 0:00:12]} 43. Qxe4 {[%clk 0:01:17]}  c4 {[%clk 0:00:11]} 44. bxc4 {[%clk 0:01:17]}  Kc5 {[%clk 0:00:12]} 45. cxb5 {[%clk 0:01:17]}  a5 {[%clk 0:00:11]} 46. Kxh5 {[%clk 0:01:18]}  Kxb5 {[%clk 0:00:11]} 47. Kg6 {[%clk 0:01:19]}  a4 {[%clk 0:00:12]} 48. h5 {[%clk 0:01:20]}  a3 {[%clk 0:00:12]} 49. h6 {[%clk 0:01:21]}  Kc5 {[%clk 0:00:13]} 50. h7 {[%clk 0:01:21]}  Kd6 {[%clk 0:00:14]} 51. h8=Q {[%clk 0:01:22]}  Kd7 {[%clk 0:00:14]} 52. Qf6 {[%clk 0:01:21]}  Kc8 {[%clk 0:00:13]} 53. Qee7 {[%clk 0:01:21]}  Kb8 {[%clk 0:00:13]} 54. Qff8# {[%clk 0:01:22]} 1-0


[Site "https://www.chess.com"]

[Event "Titled Tuesday Blitz May 03 Early 2022"]
[White "Demchenko, Anton"]
[Black "Omariev, Maksim"]
[WhiteFideId "4160258"]
[BlackFideId "4193423"]
[WhiteElo "2539"]
[BlackElo "2510"]
[Result "1-0"]
[Round "03"]
[TimeControl "180+1"]
[Date "2022.05.03"]
[WhiteClock "0:01:12"]
[BlackClock "0:00:01"]

1. e4 {[%clk 0:03:00]}  c5 {[%clk 0:02:59]} 2. Nf3 {[%clk 0:03:00]}  d6 {[%clk 0:03:00]} 3. d4 {[%clk 0:03:00]}  cxd4 {[%clk 0:03:01]} 4. Qxd4 {[%clk 0:03:01]}  a6 {[%clk 0:03:00]} 5. Bc4 {[%clk 0:02:53]}  Nc6 {[%clk 0:03:00]} 6. Qe3 {[%clk 0:02:52]}  Nf6 {[%clk 0:03:00]} 7. h3 {[%clk 0:02:50]}  g6 {[%clk 0:03:00]} 8. O-O {[%clk 0:02:49]}  Bg7 {[%clk 0:03:01]} 9. Nc3 {[%clk 0:02:50]}  O-O {[%clk 0:03:01]} 10. a4 {[%clk 0:02:49]}  Be6 {[%clk 0:02:26]} 11. Bxe6 {[%clk 0:02:48]}  fxe6 {[%clk 0:02:27]} 12. Ne2 {[%clk 0:02:38]}  e5 {[%clk 0:02:03]} 13. Bd2 {[%clk 0:02:33]}  Rc8 {[%clk 0:02:02]} 14. c4 {[%clk 0:02:29]}  Nh5 {[%clk 0:01:53]} 15. Rfd1 {[%clk 0:02:27]}  Nf4 {[%clk 0:01:50]} 16. Bc3 {[%clk 0:02:10]}  Qd7 {[%clk 0:01:10]} 17. c5 {[%clk 0:02:01]}  Nxh3+ {[%clk 0:00:58]} 18. gxh3 {[%clk 0:01:59]}  Qxh3 {[%clk 0:00:59]} 19. Nh2 {[%clk 0:01:48]}  Qe6 {[%clk 0:00:40]} 20. cxd6 {[%clk 0:01:45]}  exd6 {[%clk 0:00:41]} 21. Kg2 {[%clk 0:01:41]}  Rf7 {[%clk 0:00:40]} 22. f3 {[%clk 0:01:23]}  Rcf8 {[%clk 0:00:39]} 23. Qd3 {[%clk 0:01:23]}  Rf6 {[%clk 0:00:28]} 24. Qd5 {[%clk 0:01:23]}  h5 {[%clk 0:00:21]} 25. Qxe6+ {[%clk 0:01:22]}  Rxe6 {[%clk 0:00:22]} 26. Rd3 {[%clk 0:01:22]}  Kf7 {[%clk 0:00:21]} 27. b4 {[%clk 0:01:21]}  Ke7 {[%clk 0:00:22]} 28. b5 {[%clk 0:01:21]}  Nb8 {[%clk 0:00:20]} 29. Bb4 {[%clk 0:01:21]}  Rd8 {[%clk 0:00:20]} 30. Nc3 {[%clk 0:01:21]}  axb5 {[%clk 0:00:19]} 31. Nd5+ {[%clk 0:01:21]}  Kf7 {[%clk 0:00:19]} 32. axb5 {[%clk 0:01:21]}  Bf8 {[%clk 0:00:17]} 33. Ra7 {[%clk 0:01:21]}  Rd7 {[%clk 0:00:16]} 34. Nf1 {[%clk 0:01:16]}  g5 {[%clk 0:00:16]} 35. Ng3 {[%clk 0:01:16]}  Kg6 {[%clk 0:00:17]} 36. Nf5 {[%clk 0:01:16]}  g4 {[%clk 0:00:17]} 37. fxg4 {[%clk 0:01:14]}  hxg4 {[%clk 0:00:18]} 38. Rg3 {[%clk 0:01:13]}  Kg5 {[%clk 0:00:18]} 39. Bd2+ {[%clk 0:01:13]}  Kh5 {[%clk 0:00:18]} 40. Ra1 {[%clk 0:01:13]}  Rf7 {[%clk 0:00:01]} 41. Rh1+ {[%clk 0:01:12]} 1-0


[Site "https://www.chess.com"]

[Event "Titled Tuesday Blitz May 03 Early 2022"]
[White "Devaev, Alexander"]
[Black "Vlassov, Nikolai"]
[WhiteFideId "4169395"]
[BlackFideId "4103360"]
[WhiteElo "2185"]
[BlackElo "2407"]
[Result "0-1"]
[Round "03"]
[TimeControl "180+1"]
[Date "2022.05.03"]
[WhiteClock "0:00:05"]
[BlackClock "0:00:45"]

1. Nf3 {[%clk 0:02:55]}  g6 {[%clk 0:02:59]} 2. c4 {[%clk 0:02:55]}  Bg7 {[%clk 0:02:59]} 3. Nc3 {[%clk 0:02:55]}  f5 {[%clk 0:02:59]} 4. d4 {[%clk 0:02:53]}  Nf6 {[%clk 0:02:58]} 5. g3 {[%clk 0:02:54]}  O-O {[%clk 0:02:58]} 6. Bg2 {[%clk 0:02:54]}  d6 {[%clk 0:02:58]} 7. d5 {[%clk 0:02:54]}  c6 {[%clk 0:02:53]} 8. O-O {[%clk 0:02:54]}  cxd5 {[%clk 0:02:43]} 9. cxd5 {[%clk 0:02:54]}  Na6 {[%clk 0:02:42]} 10. Be3 {[%clk 0:02:51]}  Bd7 {[%clk 0:02:34]} 11. Bd4 {[%clk 0:02:51]}  Rc8 {[%clk 0:02:27]} 12. Rc1 {[%clk 0:02:51]}  Nc5 {[%clk 0:02:27]} 13. Ng5 {[%clk 0:02:35]}  h6 {[%clk 0:02:23]} 14. Nf3 {[%clk 0:02:35]}  g5 {[%clk 0:02:19]} 15. b4 {[%clk 0:02:18]}  Nce4 {[%clk 0:02:17]} 16. Qb3 {[%clk 0:01:51]}  Qe8 {[%clk 0:02:03]} 17. Nxe4 {[%clk 0:01:41]}  Nxe4 {[%clk 0:02:01]} 18. Bxg7 {[%clk 0:01:39]}  Kxg7 {[%clk 0:02:01]} 19. Qb2+ {[%clk 0:01:37]}  Kh7 {[%clk 0:02:01]} 20. Nd4 {[%clk 0:01:35]}  Qf7 {[%clk 0:01:57]} 21. Rfd1 {[%clk 0:01:27]}  Rxc1 {[%clk 0:01:56]} 22. Qxc1 {[%clk 0:01:26]}  Rc8 {[%clk 0:01:56]} 23. Qa1 {[%clk 0:01:04]}  Qxd5 {[%clk 0:01:50]} 24. e3 {[%clk 0:00:42]}  Qe5 {[%clk 0:01:45]} 25. f4 {[%clk 0:00:28]}  gxf4 {[%clk 0:01:43]} 26. exf4 {[%clk 0:00:29]}  Qf6 {[%clk 0:01:41]} 27. Re1 {[%clk 0:00:25]}  Rc4 {[%clk 0:01:38]} 28. Bxe4 {[%clk 0:00:15]}  fxe4 {[%clk 0:01:21]} 29. Rxe4 {[%clk 0:00:08]}  d5 {[%clk 0:01:18]} 30. Re5 {[%clk 0:00:02]}  Rxb4 {[%clk 0:00:58]} 31. Qe1 {[%clk 0:00:02]}  Rxd4 {[%clk 0:00:50]} 32. Qa1 {[%clk 0:00:03]}  Re4 {[%clk 0:00:46]} 33. Qc3 {[%clk 0:00:04]}  Rxe5 {[%clk 0:00:45]} 34. Qd4 {[%clk 0:00:05]}  Re1+ {[%clk 0:00:45]} 0-1


[Site "https://www.chess.com"]

[Event "Titled Tuesday Blitz May 03 Early 2022"]
[White "Djordjevic, Vuk"]
[Black "Bluebaum, Matthias"]
[WhiteFideId "902098"]
[BlackFideId "24651516"]
[WhiteElo "2496"]
[BlackElo "2550"]
[Result "0-1"]
[Round "03"]
[TimeControl "180+1"]
[Date "2022.05.03"]
[WhiteClock "0:00:03"]
[BlackClock "0:00:19"]

1. d4 {[%clk 0:03:00]}  Nf6 {[%clk 0:03:00]} 2. Bg5 {[%clk 0:03:00]}  d5 {[%clk 0:03:00]} 3. Bxf6 {[%clk 0:03:00]}  gxf6 {[%clk 0:03:01]} 4. e3 {[%clk 0:03:00]}  c5 {[%clk 0:02:59]} 5. dxc5 {[%clk 0:03:01]}  e6 {[%clk 0:03:00]} 6. Nf3 {[%clk 0:02:59]}  Bxc5 {[%clk 0:02:59]} 7. Be2 {[%clk 0:02:57]}  Nc6 {[%clk 0:02:57]} 8. O-O {[%clk 0:02:55]}  f5 {[%clk 0:02:58]} 9. c4 {[%clk 0:02:55]}  dxc4 {[%clk 0:02:58]} 10. Nbd2 {[%clk 0:02:54]}  c3 {[%clk 0:02:56]} 11. bxc3 {[%clk 0:02:54]}  O-O {[%clk 0:02:49]} 12. Qc2 {[%clk 0:02:53]}  Qc7 {[%clk 0:02:42]} 13. e4 {[%clk 0:02:53]}  f4 {[%clk 0:02:43]} 14. Rfd1 {[%clk 0:02:42]}  b6 {[%clk 0:02:28]} 15. Nb3 {[%clk 0:02:37]}  Be7 {[%clk 0:02:28]} 16. Nbd4 {[%clk 0:02:22]}  Bb7 {[%clk 0:02:11]} 17. Nb5 {[%clk 0:02:22]}  Qb8 {[%clk 0:02:10]} 18. Rd7 {[%clk 0:02:12]}  Rd8 {[%clk 0:02:09]} 19. Rad1 {[%clk 0:02:08]}  Rxd7 {[%clk 0:01:50]} 20. Rxd7 {[%clk 0:02:06]}  Bc8 {[%clk 0:01:51]} 21. Rd1 {[%clk 0:01:39]}  a6 {[%clk 0:01:51]} 22. Nbd4 {[%clk 0:01:39]}  Bb7 {[%clk 0:01:51]} 23. Nxc6 {[%clk 0:01:24]}  Bxc6 {[%clk 0:01:52]} 24. Nd4 {[%clk 0:01:24]}  Be8 {[%clk 0:01:43]} 25. Qb3 {[%clk 0:01:03]}  Qc7 {[%clk 0:01:41]} 26. Bh5 {[%clk 0:00:45]}  Qe5 {[%clk 0:01:30]} 27. Bg4 {[%clk 0:00:37]}  b5 {[%clk 0:01:26]} 28. a4 {[%clk 0:00:27]}  Rd8 {[%clk 0:01:16]} 29. axb5 {[%clk 0:00:26]}  axb5 {[%clk 0:01:17]} 30. Re1 {[%clk 0:00:20]}  b4 {[%clk 0:01:15]} 31. Ne2 {[%clk 0:00:17]}  Qxe4 {[%clk 0:01:16]} 32. cxb4 {[%clk 0:00:15]}  Qxb4 {[%clk 0:01:15]} 33. Qxb4 {[%clk 0:00:14]}  Bxb4 {[%clk 0:01:16]} 34. Rb1 {[%clk 0:00:14]}  Bd6 {[%clk 0:01:10]} 35. Rd1 {[%clk 0:00:15]}  Rd7 {[%clk 0:01:11]} 36. Nc3 {[%clk 0:00:11]}  Be5 {[%clk 0:01:10]} 37. Rxd7 {[%clk 0:00:11]}  Bxd7 {[%clk 0:01:11]} 38. Ne2 {[%clk 0:00:11]}  f5 {[%clk 0:01:10]} 39. Bf3 {[%clk 0:00:11]}  Bd6 {[%clk 0:01:11]} 40. g3 {[%clk 0:00:10]}  fxg3 {[%clk 0:01:12]} 41. hxg3 {[%clk 0:00:11]}  Kg7 {[%clk 0:01:12]} 42. Kg2 {[%clk 0:00:10]}  Kf6 {[%clk 0:01:13]} 43. Nd4 {[%clk 0:00:07]}  e5 {[%clk 0:01:12]} 44. Bc6 {[%clk 0:00:08]}  Bc8 {[%clk 0:01:07]} 45. Nb5 {[%clk 0:00:08]}  Bc5 {[%clk 0:01:05]} 46. Nc3 {[%clk 0:00:08]}  Bd4 {[%clk 0:00:59]} 47. Nd5+ {[%clk 0:00:07]}  Ke6 {[%clk 0:01:00]} 48. Nb4 {[%clk 0:00:06]}  Kd6 {[%clk 0:01:00]} 49. Be8 {[%clk 0:00:06]}  Bb7+ {[%clk 0:00:55]} 50. Kg1 {[%clk 0:00:06]}  e4 {[%clk 0:00:52]} 51. Nc2 {[%clk 0:00:05]}  Bc5 {[%clk 0:00:52]} 52. Ne3 {[%clk 0:00:06]}  Ke5 {[%clk 0:00:53]} 53. Bd7 {[%clk 0:00:06]}  f4 {[%clk 0:00:50]} 54. gxf4+ {[%clk 0:00:06]}  Kxf4 {[%clk 0:00:51]} 55. Ng2+ {[%clk 0:00:04]}  Kf3 {[%clk 0:00:52]} 56. Nh4+ {[%clk 0:00:03]}  Ke2 {[%clk 0:00:52]} 57. Bg4+ {[%clk 0:00:03]}  Ke1 {[%clk 0:00:53]} 58. Ng2+ {[%clk 0:00:03]}  Kd2 {[%clk 0:00:54]} 59. Nh4 {[%clk 0:00:03]}  Be7 {[%clk 0:00:42]} 60. Ng2 {[%clk 0:00:03]}  Bg5 {[%clk 0:00:42]} 61. Bh5 {[%clk 0:00:03]}  Bd5 {[%clk 0:00:39]} 62. Kh2 {[%clk 0:00:04]}  Bc4 {[%clk 0:00:36]} 63. Kg3 {[%clk 0:00:03]}  Be2 {[%clk 0:00:37]} 64. Nf4 {[%clk 0:00:02]}  Bxf4+ {[%clk 0:00:36]} 65. Kxf4 {[%clk 0:00:01]}  Bxh5 {[%clk 0:00:37]} 66. Kxe4 {[%clk 0:00:02]}  Bg6+ {[%clk 0:00:34]} 67. Ke5 {[%clk 0:00:02]}  Ke2 {[%clk 0:00:20]} 68. f4 {[%clk 0:00:01]}  h5 {[%clk 0:00:19]} 69. f5 {[%clk 0:00:02]}  Be8 {[%clk 0:00:20]} 70. Kf4 {[%clk 0:00:02]}  Kf2 {[%clk 0:00:19]} 71. f6 {[%clk 0:00:01]}  Kg2 {[%clk 0:00:19]} 72. Kg5 {[%clk 0:00:02]}  Kg3 {[%clk 0:00:18]} 73. Kh6 {[%clk 0:00:02]}  h4 {[%clk 0:00:19]} 74. Kg7 {[%clk 0:00:03]} 0-1


[Site "https://www.chess.com"]

[Event "Titled Tuesday Blitz May 03 Early 2022"]
[White "Fiorito, Fabian"]
[Black "Kozak, Antoni"]
[WhiteFideId "100200"]
[BlackFideId "21832030"]
[WhiteElo "2395"]
[BlackElo "2236"]
[Result "1-0"]
[Round "03"]
[TimeControl "180+1"]
[Date "2022.05.03"]
[WhiteClock "0:00:17"]
[BlackClock "0:00:08"]

1. d4 {[%clk 0:03:00]}  d5 {[%clk 0:02:59]} 2. Nc3 {[%clk 0:03:00]}  Nf6 {[%clk 0:02:58]} 3. Bf4 {[%clk 0:03:01]}  c6 {[%clk 0:02:51]} 4. e3 {[%clk 0:03:00]}  Bf5 {[%clk 0:02:49]} 5. f3 {[%clk 0:03:00]}  h5 {[%clk 0:02:44]} 6. Bd3 {[%clk 0:02:57]}  e6 {[%clk 0:02:42]} 7. Nge2 {[%clk 0:02:54]}  Bxd3 {[%clk 0:02:29]} 8. Qxd3 {[%clk 0:02:54]}  Bd6 {[%clk 0:02:29]} 9. O-O-O {[%clk 0:02:53]}  Na6 {[%clk 0:02:26]} 10. a3 {[%clk 0:02:53]}  Bxf4 {[%clk 0:02:20]} 11. Nxf4 {[%clk 0:02:53]}  Qc7 {[%clk 0:02:17]} 12. Nfe2 {[%clk 0:02:45]}  O-O-O {[%clk 0:02:15]} 13. e4 {[%clk 0:02:44]}  dxe4 {[%clk 0:02:10]} 14. fxe4 {[%clk 0:02:45]}  e5 {[%clk 0:02:07]} 15. d5 {[%clk 0:02:28]}  Kb8 {[%clk 0:01:55]} 16. h3 {[%clk 0:02:23]}  Nc5 {[%clk 0:01:35]} 17. Qc4 {[%clk 0:02:21]}  cxd5 {[%clk 0:01:33]} 18. exd5 {[%clk 0:02:18]}  a6 {[%clk 0:01:33]} 19. Rhf1 {[%clk 0:02:09]}  Rhf8 {[%clk 0:01:16]} 20. Ng3 {[%clk 0:02:07]}  Ne8 {[%clk 0:01:01]} 21. Qe2 {[%clk 0:01:54]}  f6 {[%clk 0:00:49]} 22. Qxh5 {[%clk 0:01:48]}  Nd6 {[%clk 0:00:49]} 23. Qe2 {[%clk 0:01:47]}  Rc8 {[%clk 0:00:48]} 24. Kb1 {[%clk 0:01:46]}  Qa5 {[%clk 0:00:43]} 25. Nce4 {[%clk 0:01:43]}  Ncxe4 {[%clk 0:00:30]} 26. Nxe4 {[%clk 0:01:43]}  Rfd8 {[%clk 0:00:30]} 27. Nxd6 {[%clk 0:01:18]}  Rxd6 {[%clk 0:00:31]} 28. c4 {[%clk 0:01:17]}  Qa4 {[%clk 0:00:24]} 29. Rc1 {[%clk 0:01:15]}  Rb6 {[%clk 0:00:18]} 30. Rf3 {[%clk 0:01:13]}  Rd6 {[%clk 0:00:15]} 31. Rfc3 {[%clk 0:01:09]}  Qd7 {[%clk 0:00:15]} 32. Rd1 {[%clk 0:01:08]}  Rd8 {[%clk 0:00:14]} 33. Rcd3 {[%clk 0:01:08]}  Qf5 {[%clk 0:00:14]} 34. Ka1 {[%clk 0:01:06]}  Qc8 {[%clk 0:00:13]} 35. Qc2 {[%clk 0:01:03]}  Qc5 {[%clk 0:00:13]} 36. b4 {[%clk 0:01:03]}  Qc7 {[%clk 0:00:07]} 37. c5 {[%clk 0:01:02]}  R6d7 {[%clk 0:00:08]} 38. Qc4 {[%clk 0:01:01]}  f5 {[%clk 0:00:07]} 39. b5 {[%clk 0:00:55]}  axb5 {[%clk 0:00:07]} 40. Qxb5 {[%clk 0:00:56]}  e4 {[%clk 0:00:07]} 41. Rd4 {[%clk 0:00:53]}  Qe5 {[%clk 0:00:07]} 42. Ka2 {[%clk 0:00:48]}  e3 {[%clk 0:00:07]} 43. c6 {[%clk 0:00:48]}  e2 {[%clk 0:00:06]} 44. cxd7 {[%clk 0:00:44]}  exd1=Q {[%clk 0:00:05]} 45. Rxd1 {[%clk 0:00:45]}  Qd6 {[%clk 0:00:05]} 46. Qb4 {[%clk 0:00:32]}  Qxd7 {[%clk 0:00:04]} 47. d6 {[%clk 0:00:30]}  Qe6+ {[%clk 0:00:04]} 48. Kb1 {[%clk 0:00:28]}  Rd7 {[%clk 0:00:04]} 49. Qd4 {[%clk 0:00:20]}  g6 {[%clk 0:00:02]} 50. Qb4 {[%clk 0:00:18]}  Qe4+ {[%clk 0:00:02]} 51. Qxe4 {[%clk 0:00:17]}  fxe4 {[%clk 0:00:03]} 52. Re1 {[%clk 0:00:17]}  Rxd6 {[%clk 0:00:03]} 53. Rxe4 {[%clk 0:00:17]}  Rd1+ {[%clk 0:00:03]} 54. Kc2 {[%clk 0:00:17]}  Rd6 {[%clk 0:00:04]} 55. Rg4 {[%clk 0:00:17]}  Rc6+ {[%clk 0:00:05]} 56. Kb3 {[%clk 0:00:18]}  Re6 {[%clk 0:00:05]} 57. Rg5 {[%clk 0:00:18]}  Kc7 {[%clk 0:00:06]} 58. h4 {[%clk 0:00:18]}  Rb6+ {[%clk 0:00:06]} 59. Kc4 {[%clk 0:00:18]}  Rf6 {[%clk 0:00:07]} 60. g3 {[%clk 0:00:17]}  Ra6 {[%clk 0:00:07]} 61. Kb4 {[%clk 0:00:16]}  Rf6 {[%clk 0:00:08]} 62. a4 {[%clk 0:00:16]}  Re6 {[%clk 0:00:08]} 63. Rg4 {[%clk 0:00:13]}  Rf6 {[%clk 0:00:08]} 64. Kc5 {[%clk 0:00:12]}  Rf5+ {[%clk 0:00:08]} 65. Kd4 {[%clk 0:00:12]}  Rf6 {[%clk 0:00:09]} 66. Ke5 {[%clk 0:00:12]}  Ra6 {[%clk 0:00:09]} 67. Re4 {[%clk 0:00:10]}  Kd7 {[%clk 0:00:09]} 68. Kf4 {[%clk 0:00:10]}  Ra5 {[%clk 0:00:09]} 69. g4 {[%clk 0:00:10]}  b5 {[%clk 0:00:07]} 70. axb5 {[%clk 0:00:09]}  Rxb5 {[%clk 0:00:08]} 71. Re5 {[%clk 0:00:09]}  Rxe5 {[%clk 0:00:04]} 72. Kxe5 {[%clk 0:00:10]}  Ke7 {[%clk 0:00:04]} 73. g5 {[%clk 0:00:11]}  Kf7 {[%clk 0:00:04]} 74. Kd6 {[%clk 0:00:12]}  Kg7 {[%clk 0:00:01]} 75. Ke7 {[%clk 0:00:12]}  Kg8 {[%clk 0:00:02]} 76. Kf6 {[%clk 0:00:12]}  Kh7 {[%clk 0:00:02]} 77. Kf7 {[%clk 0:00:13]}  Kh8 {[%clk 0:00:03]} 78. Kxg6 {[%clk 0:00:14]}  Kg8 {[%clk 0:00:04]} 79. h5 {[%clk 0:00:13]}  Kh8 {[%clk 0:00:05]} 80. Kf7 {[%clk 0:00:14]}  Kh7 {[%clk 0:00:05]} 81. g6+ {[%clk 0:00:15]}  Kh8 {[%clk 0:00:06]} 82. g7+ {[%clk 0:00:15]}  Kh7 {[%clk 0:00:07]} 83. g8=Q+ {[%clk 0:00:16]}  Kh6 {[%clk 0:00:08]} 84. Qg6# {[%clk 0:00:17]} 1-0


[Site "https://www.chess.com"]

[Event "Titled Tuesday Blitz May 03 Early 2022"]
[White "Gallegos Diaz, Carlos Alberto"]
[Black "Khokhlova, Daria"]
[WhiteFideId "3900886"]
[BlackFideId "24182729"]
[WhiteElo "2362"]
[BlackElo "2034"]
[Result "0-1"]
[Round "03"]
[TimeControl "180+1"]
[Date "2022.05.03"]
[WhiteClock "0:00:12"]
[BlackClock "0:00:26"]

1. e4 {[%clk 0:03:00]}  c5 {[%clk 0:02:59]} 2. Nf3 {[%clk 0:03:00]}  d6 {[%clk 0:02:59]} 3. d3 {[%clk 0:02:59]}  Nf6 {[%clk 0:02:59]} 4. Nbd2 {[%clk 0:02:59]}  g6 {[%clk 0:02:58]} 5. Be2 {[%clk 0:02:59]}  Bg7 {[%clk 0:02:58]} 6. O-O {[%clk 0:02:59]}  O-O {[%clk 0:02:59]} 7. h3 {[%clk 0:02:59]}  Nc6 {[%clk 0:02:59]} 8. Re1 {[%clk 0:02:59]}  d5 {[%clk 0:02:54]} 9. c3 {[%clk 0:02:58]}  dxe4 {[%clk 0:02:52]} 10. dxe4 {[%clk 0:02:58]}  b6 {[%clk 0:02:44]} 11. Qc2 {[%clk 0:02:53]}  Bb7 {[%clk 0:02:44]} 12. Bf1 {[%clk 0:02:51]}  Qc7 {[%clk 0:02:39]} 13. Nc4 {[%clk 0:02:35]}  b5 {[%clk 0:02:24]} 14. Ne3 {[%clk 0:02:34]}  Ne5 {[%clk 0:02:15]} 15. Nxe5 {[%clk 0:02:24]}  Qxe5 {[%clk 0:02:15]} 16. Ng4 {[%clk 0:01:51]}  Nxg4 {[%clk 0:02:13]} 17. hxg4 {[%clk 0:01:52]}  a6 {[%clk 0:02:07]} 18. f4 {[%clk 0:01:51]}  Qc7 {[%clk 0:02:05]} 19. g5 {[%clk 0:01:46]}  Rfd8 {[%clk 0:01:44]} 20. Qf2 {[%clk 0:01:45]}  b4 {[%clk 0:01:31]} 21. e5 {[%clk 0:01:28]}  Bd5 {[%clk 0:01:09]} 22. c4 {[%clk 0:01:23]}  Be6 {[%clk 0:01:08]} 23. Be3 {[%clk 0:01:22]}  Rac8 {[%clk 0:01:05]} 24. Rad1 {[%clk 0:01:21]}  Rxd1 {[%clk 0:01:04]} 25. Rxd1 {[%clk 0:01:21]}  f6 {[%clk 0:01:01]} 26. gxf6 {[%clk 0:01:13]}  exf6 {[%clk 0:01:02]} 27. Rd6 {[%clk 0:01:13]}  Qf7 {[%clk 0:00:51]} 28. Qg3 {[%clk 0:00:47]}  fxe5 {[%clk 0:00:44]} 29. fxe5 {[%clk 0:00:48]}  Bxc4 {[%clk 0:00:43]} 30. Bxc4 {[%clk 0:00:42]}  Qxc4 {[%clk 0:00:44]} 31. Qf4 {[%clk 0:00:28]}  Qxf4 {[%clk 0:00:39]} 32. Bxf4 {[%clk 0:00:29]}  c4 {[%clk 0:00:33]} 33. Rd2 {[%clk 0:00:16]}  c3 {[%clk 0:00:30]} 34. bxc3 {[%clk 0:00:16]}  bxc3 {[%clk 0:00:31]} 35. Rc2 {[%clk 0:00:16]}  Kf7 {[%clk 0:00:30]} 36. Kf2 {[%clk 0:00:16]}  Ke6 {[%clk 0:00:29]} 37. Ke3 {[%clk 0:00:15]}  Bxe5 {[%clk 0:00:28]} 38. Bxe5 {[%clk 0:00:15]}  Kxe5 {[%clk 0:00:29]} 39. Kd3 {[%clk 0:00:16]}  Kf4 {[%clk 0:00:29]} 40. Re2 {[%clk 0:00:12]}  c2 {[%clk 0:00:26]} 0-1


[Site "https://www.chess.com"]

[Event "Titled Tuesday Blitz May 03 Early 2022"]
[White "Gottstein, Claudius-Thomas"]
[Black "Pourkashiyan, Atousa"]
[WhiteFideId "4653327"]
[BlackFideId "12502014"]
[WhiteElo "2109"]
[BlackElo "2247"]
[Result "0-1"]
[Round "03"]
[TimeControl "180+1"]
[Date "2022.05.03"]
[WhiteClock "0:00:01"]
[BlackClock "0:00:17"]

1. e4 {[%clk 0:02:53]}  c5 {[%clk 0:02:59]} 2. Nf3 {[%clk 0:02:52]}  e6 {[%clk 0:02:59]} 3. g3 {[%clk 0:02:52]}  a6 {[%clk 0:02:59]} 4. Bg2 {[%clk 0:02:52]}  Nc6 {[%clk 0:02:59]} 5. O-O {[%clk 0:02:52]}  d6 {[%clk 0:02:58]} 6. c3 {[%clk 0:02:49]}  Nf6 {[%clk 0:02:56]} 7. Qe2 {[%clk 0:02:48]}  Be7 {[%clk 0:02:56]} 8. d4 {[%clk 0:02:48]}  O-O {[%clk 0:02:54]} 9. Rd1 {[%clk 0:02:48]}  Bd7 {[%clk 0:02:46]} 10. e5 {[%clk 0:02:46]}  Nd5 {[%clk 0:02:37]} 11. exd6 {[%clk 0:02:32]}  Bxd6 {[%clk 0:02:36]} 12. c4 {[%clk 0:02:31]}  Nf6 {[%clk 0:02:24]} 13. Nc3 {[%clk 0:02:23]}  cxd4 {[%clk 0:02:12]} 14. Nxd4 {[%clk 0:02:23]}  Nxd4 {[%clk 0:02:13]} 15. Rxd4 {[%clk 0:02:21]}  Qc7 {[%clk 0:02:14]} 16. Bg5 {[%clk 0:02:07]}  Be5 {[%clk 0:02:14]} 17. Rd3 {[%clk 0:01:49]}  h6 {[%clk 0:02:14]} 18. Bxf6 {[%clk 0:01:42]}  Bxf6 {[%clk 0:02:14]} 19. Ne4 {[%clk 0:01:42]}  Be7 {[%clk 0:02:15]} 20. Rad1 {[%clk 0:01:38]}  Bc6 {[%clk 0:02:15]} 21. b3 {[%clk 0:01:38]}  Rfd8 {[%clk 0:02:15]} 22. Rxd8+ {[%clk 0:01:16]}  Rxd8 {[%clk 0:02:16]} 23. Rxd8+ {[%clk 0:01:16]}  Qxd8 {[%clk 0:02:17]} 24. Qd2 {[%clk 0:01:16]}  Qc7 {[%clk 0:02:08]} 25. Qd3 {[%clk 0:01:06]}  b6 {[%clk 0:01:55]} 26. h3 {[%clk 0:01:04]}  Qb7 {[%clk 0:01:54]} 27. Bf3 {[%clk 0:00:57]}  b5 {[%clk 0:01:25]} 28. cxb5 {[%clk 0:00:35]}  axb5 {[%clk 0:01:25]} 29. Nd2 {[%clk 0:00:29]}  b4 {[%clk 0:01:19]} 30. Bxc6 {[%clk 0:00:27]}  Qxc6 {[%clk 0:01:20]} 31. Nc4 {[%clk 0:00:26]}  Qc7 {[%clk 0:01:09]} 32. Qe4 {[%clk 0:00:21]}  Qa7 {[%clk 0:01:08]} 33. Qe2 {[%clk 0:00:11]}  Qd4 {[%clk 0:01:07]} 34. Qd2 {[%clk 0:00:10]}  Qa1+ {[%clk 0:00:40]} 35. Kg2 {[%clk 0:00:10]}  g6 {[%clk 0:00:37]} 36. Qxh6 {[%clk 0:00:07]}  Qxa2 {[%clk 0:00:34]} 37. Qe3 {[%clk 0:00:07]}  Qc2 {[%clk 0:00:31]} 38. Ne5 {[%clk 0:00:03]}  Bf6 {[%clk 0:00:23]} 39. Nf3 {[%clk 0:00:01]}  Qc6 {[%clk 0:00:17]} 0-1


[Site "https://www.chess.com"]